bitfinex/quotes_SOLUSD_20250406
["timestamp","ask_amount","ask_price","bid_price","bid_amount"]
[1743947638760,0.063,114.63,114.58,18.79181043]
[1743947638959,0.063,114.63,114.59,0.14216157]
[1743947639157,0.063,114.63,114.59,0.28432314]
[1743947639763,0.063,114.63,114.6,6.1082]
[1743947639944,0.063,114.63,114.61,0.42648471]
[1743947640139,0.063,114.63,114.61,19.07613357]
[1743947640342,0.063,114.63,114.61,18.64964886]
[1743947640538,0.063,114.63,114.59,0.14216157]
[1743947640739,0.5,114.62,114.58,18.64964886]
[1743947640942,0.563,114.63,114.58,0.14216157]
[1743947641161,26.563,114.63,114.58,0.14216157]
[1743947641355,0.5,114.61,114.57,18.64964886]
[1743947641552,0.5,114.59,114.55,326.65]
[1743947641866,0.5,114.62,114.57,6.25196157]
[1743947642167,26.563,114.63,114.57,6.25196157]
[1743947642361,0.5,114.59,114.55,326.65]
[1743947642547,0.5,114.58,114.55,326.65]
[1743947642942,81.8,114.61,114.57,0.14216157]
[1743947643142,0.063,114.63,114.57,0.14216157]
[1743947643366,0.063,114.63,114.57,0.42648471]
[1743947644068,0.063,114.63,114.59,19.07613357]
[1743947645868,0.063,114.63,114.59,18.79181043]
[1743947646068,0.063,114.63,114.61,18.64964886]
[1743947646474,0.063,114.63,114.6,6.1078]
[1743947646666,0.063,114.63,114.61,18.64964886]
[1743947648160,0.5,114.62,114.56,6.1103]
[1743947648468,0.5,114.62,114.56,0.14216157]
[1743947648773,0.5,114.61,114.56,18.933972]
[1743947648980,0.5,114.62,114.56,18.933972]
[1743947649344,0.063,114.63,114.57,0.14216157]
[1743947650069,0.063,114.63,114.59,19.07613357]
[1743947650366,0.063,114.63,114.56,6.1101]
[1743947650367,0.5,114.61,114.56,6.1101]
[1743947650564,0.563,114.63,114.57,0.42648471]
[1743947650765,0.063,114.63,114.57,19.07613357]
[1743947651153,0.563,114.63,114.57,19.07613357]
[1743947651359,0.063,114.62,114.55,0.03]
[1743947651559,0.5,114.61,114.55,0.03]
[1743947652271,0.5,114.59,114.55,0.03]
[1743947652459,0.5,114.56,114.55,0.03]
[1743947652660,0.5,114.57,114.55,0.03]
[1743947653267,13.1796,114.57,114.55,0.03]
[1743947653451,0.5,114.56,114.55,0.03]
[1743947653652,13.1796,114.57,114.55,0.03]
[1743947653853,0.5,114.56,114.55,0.03]
[1743947654760,26.0,114.54,114.46,341.8679]
[1743947654966,0.5,114.52,114.48,0.14216157]
[1743947655360,0.5,114.55,114.48,0.14216157]
[1743947655575,82.3,114.56,114.49,0.28432314]
[1743947655873,0.5,114.58,114.49,0.28432314]
[1743947656277,0.5,114.56,114.5,6.1135]
[1743947656582,0.5,114.56,114.52,0.28432314]
[1743947656784,26.5,114.57,114.52,0.28432314]
[1743947657171,26.5,114.57,114.51,18.79181043]
[1743947657670,0.5,114.58,114.52,0.28432314]
[1743947658381,81.8,114.6,114.54,19.07613357]
[1743947658382,0.5,114.59,114.54,19.07613357]
[1743947658683,82.3,114.6,114.54,19.07613357]
[1743947658880,82.3,114.6,114.56,19.07613357]
[1743947659178,81.8,114.6,114.56,19.07613357]
[1743947659583,82.3,114.6,114.56,19.07613357]
[1743947659787,0.5,114.59,114.56,19.07613357]
[1743947660086,81.3,114.6,114.56,19.07613357]
[1743947660492,0.063,114.63,114.56,25.18603357]
[1743947660990,0.063,114.63,114.56,25.18633357]
[1743947661573,0.063,114.63,114.56,40.46213357]
[1743947662374,0.0001,114.63,114.62,25.18323357]
[1743947662687,0.063,114.67,114.62,70.98663357]
[1743947663189,0.063,114.67,114.62,71.48663357]
[1743947663886,0.063,114.74,114.68,19.07613357]
[1743947664077,0.063,114.74,114.69,326.68]
[1743947664482,0.063,114.74,114.71,19.07613357]
[1743947665081,26.0,114.73,114.69,326.68]
[1743947666663,26.0,114.72,114.69,326.68]
[1743947667770,26.0,114.73,114.69,326.68]
[1743947670180,26.0,114.73,114.7,19.07613357]
[1743947670492,26.0,114.73,114.69,326.68]
[1743947670677,26.0,114.73,114.7,19.07613357]
[1743947670877,0.063,114.74,114.7,19.07613357]
[1743947671578,0.063,114.74,114.7,18.933972]
[1743947671976,26.063,114.74,114.7,18.933972]
[1743947672169,26.063,114.74,114.7,18.79181043]
[1743947672892,26.063,114.74,114.7,24.89461043]
[1743947673491,0.063,114.74,114.71,0.28432314]
[1743947674889,0.063,114.74,114.73,19.07613357]
[1743947675395,0.063,114.74,114.73,0.42648471]
[1743947675592,0.063,114.74,114.71,0.28432314]
[1743947675771,0.063,114.74,114.71,18.933972]
[1743947676177,0.063,114.74,114.72,0.14216157]
[1743947676397,0.063,114.74,114.7,6.1027]
[1743947676398,0.063,114.74,114.69,326.68]
[1743947676697,26.0,114.73,114.7,18.79181043]
[1743947677067,26.0,114.73,114.71,0.14216157]
[1743947677473,26.0,114.73,114.71,0.28432314]
[1743947677695,0.063,114.74,114.71,0.28432314]
[1743947679190,0.063,114.74,114.73,19.07613357]
[1743947681097,0.063,114.74,114.73,6.52768471]
[1743947683196,0.063,114.74,114.73,0.28432314]
[1743947683385,0.063,114.74,114.7,18.79181043]
[1743947683697,0.063,114.74,114.7,18.64964886]
[1743947683898,0.063,114.74,114.71,0.14216157]
[1743947684193,0.063,114.74,114.7,18.64964886]
[1743947685093,0.063,114.74,114.69,326.68]
[1743947685393,12.3388,114.73,114.69,326.68]
[1743947685781,3.9103,114.74,114.7,19.07613357]
[1743947686494,3.9103,114.74,114.69,326.68]
[1743947686794,10.0111,114.74,114.69,326.68]
[1743947686980,3.9103,114.74,114.69,326.68]
[1743947687295,26.0,114.73,114.69,326.68]
[1743947687883,3.9103,114.74,114.69,326.68]
[1743947688084,0.063,114.74,114.7,19.07613357]
[1743947689993,0.063,114.74,114.7,25.17883357]
[1743947690383,0.063,114.74,114.7,40.43593357]
[1743947694087,0.063,114.79,114.78,26.0]
[1743947694322,0.063,114.86,114.79,0.28432314]
[1743947694604,0.063,114.86,114.79,19.07613357]
[1743947694818,12.4649,114.85,114.79,19.07613357]
[1743947696288,12.4649,114.85,114.8,6.0975]
[1743947696602,12.4649,114.85,114.81,19.07613357]
[1743947696801,0.063,114.86,114.81,19.07613357]
[1743947698287,0.063,114.86,114.8,21.3414]
[1743947698288,0.063,114.86,114.83,19.07613357]
[1743947700214,0.063,114.86,114.85,0.28432314]
[1743947700429,0.063,114.86,114.82,25.17253357]
[1743947700715,0.063,114.86,114.82,24.88821043]
[1743947701207,0.063,114.86,114.83,0.28432314]
[1743947701909,0.063,114.86,114.82,18.79181043]
[1743947702104,26.0,114.85,114.79,6.098]
[1743947702292,26.0,114.85,114.78,326.24]
[1743947702293,38.4649,114.85,114.8,30.0]
[1743947702796,26.0,114.81,114.8,30.0]
[1743947702989,26.0,114.81,114.78,326.24]
[1743947703185,26.0,114.81,114.79,30.0]
[1743947703589,81.3,114.84,114.79,30.0]
[1743947704009,81.3,114.84,114.78,332.3384]
[1743947704010,81.3,114.84,114.8,19.07613357]
[1743947704314,81.3,114.84,114.81,6.097]
[1743947704692,81.3,114.84,114.8,25.17343357]
[1743947705206,81.3,114.84,114.8,18.933972]
[1743947705396,81.3,114.84,114.79,19.07613357]
[1743947705710,81.3,114.84,114.8,30.0]
[1743947706409,12.4649,114.85,114.79,25.17403357]
[1743947706792,12.4649,114.85,114.79,25.23703357]
[1743947706992,26.063,114.86,114.79,40.48223357]
[1743947707418,26.063,114.86,114.81,0.28432314]
[1743947707619,26.0,114.85,114.8,30.0]
[1743947708610,26.0,114.85,114.8,36.0973]
[1743947709106,26.0,114.84,114.8,30.0]
[1743947710014,113.4573,114.86,114.8,30.0]
[1743947710515,26.0,114.82,114.79,0.063]
[1743947710698,26.0,114.82,114.79,30.063]
[1743947711602,26.0,114.82,114.79,0.063]
[1743947711909,81.3,114.85,114.79,25.23713357]
[1743947714401,26.0,114.82,114.79,0.063]
[1743947714599,26.0,114.82,114.78,312.4015]
[1743947715019,26.0,114.82,114.78,306.303]
[1743947715418,81.3,114.85,114.79,19.07613357]
[1743947716420,26.0,114.82,114.79,19.07613357]
[1743947716619,26.0,114.82,114.78,306.303]
[1743947716925,26.0,114.82,114.79,30.0]
[1743947717709,26.0,114.8,114.79,30.0]
[1743947718320,26.0,114.81,114.76,6.0994]
[1743947718512,26.0,114.81,114.77,30.0]
[1743947718914,26.0,114.8,114.77,30.0]
[1743947719123,26.0,114.79,114.77,30.0]
[1743947719317,26.0,114.79,114.71,326.06]
[1743947719531,26.0,114.75,114.73,30.0]
[1743947719907,81.3,114.78,114.73,30.0]
[1743947720132,81.3,114.78,114.74,18.933972]
[1743947720511,12.8561,114.82,114.75,0.14216157]
[1743947720811,26.0,114.79,114.76,18.933972]
[1743947721023,26.0,114.79,114.75,19.07613357]
[1743947721404,26.0,114.76,114.73,0.063]
[1743947721708,81.3,114.78,114.73,30.063]
[1743947721902,26.0,114.75,114.73,30.063]
[1743947722330,26.0,114.75,114.73,0.063]
[1743947722631,26.0,114.74,114.73,0.063]
[1743947723807,26.0,114.75,114.73,0.063]
[1743947725435,26.0,114.74,114.73,0.063]
[1743947726011,26.0,114.75,114.73,0.063]
[1743947726819,26.0,114.74,114.73,0.063]
[1743947727419,26.0,114.75,114.73,0.063]
[1743947728737,81.3,114.78,114.73,6.1642]
[1743947728913,81.3,114.78,114.74,19.07613357]
[1743947729110,12.8561,114.82,114.74,19.07613357]
[1743947729319,87.3956,114.84,114.74,19.07613357]
[1743947729731,26.0,114.81,114.74,19.07613357]
[1743947730123,81.3,114.83,114.74,19.07613357]
[1743947730418,26.0,114.79,114.74,19.07613357]
[1743947730813,81.3,114.82,114.76,19.07613357]
[1743947732816,81.3,114.82,114.77,6.0991]
[1743947733534,26.0,114.82,114.78,0.28432314]
[1743947733740,26.0,114.82,114.77,18.79181043]
[1743947734520,26.0,114.82,114.76,6.0994]
[1743947735214,26.0,114.82,114.76,18.933972]
[1743947735419,26.0,114.8,114.77,30.0]
[1743947736039,26.0,114.81,114.77,30.0]
[1743947737124,26.0,114.8,114.77,30.0]
[1743947737537,26.0,114.79,114.77,30.0]
[1743947738041,26.0,114.79,114.74,18.79181043]
[1743947738340,26.0,114.79,114.74,0.14216157]
[1743947738532,26.0,114.79,114.74,0.42648471]
[1743947738727,81.3,114.82,114.74,19.07613357]
[1743947739039,0.03,114.85,114.76,19.07613357]
[1743947739217,0.03,114.85,114.78,19.07613357]
[1743947739418,0.03,114.85,114.78,32.14703357]
[1743947740033,0.03,114.85,114.82,19.07613357]
[1743947740231,0.03,114.85,114.82,23.01143357]
[1743947741244,0.063,114.86,114.85,51.17103357]
[1743947741938,0.03,114.97,114.87,0.14216157]
[1743947742127,26.0,114.95,114.87,0.14216157]
[1743947742529,26.0,114.94,114.87,0.14216157]
[1743947742825,6.1185,114.97,114.87,0.14216157]
[1743947743139,26.0,114.93,114.87,30.14216157]
[1743947743446,26.0,114.93,114.87,36.23576157]
[1743947744140,26.0,114.93,114.88,0.28432314]
[1743947744335,26.0,114.93,114.88,30.0]
[1743947744647,113.3907,114.93,114.88,30.0]
[1743947744847,107.3,114.93,114.88,30.0]
[1743947745329,119.9456,114.93,114.88,30.0]
[1743947745736,126.0363,114.93,114.88,30.0]
[1743947747027,26.0,114.89,114.88,30.0]
[1743947747231,26.0,114.89,114.83,30.0]
[1743947747631,6.0917,114.91,114.83,30.0]
[1743947747827,26.0,114.88,114.83,30.0]
[1743947748550,26.0,114.88,114.83,36.0959]
[1743947748850,26.0,114.89,114.84,19.07613357]
[1743947749761,26.0,114.89,114.85,6.0949]
[1743947750127,26.0,114.89,114.84,19.07613357]
[1743947750128,26.0,114.89,114.84,25.17133357]
[1743947750933,26.0,114.89,114.84,19.07613357]
[1743947751138,26.0,114.85,114.83,30.0]
[1743947752236,26.0,114.85,114.81,30.0]
[1743947753337,26.0,114.85,114.81,19.07613357]
[1743947753861,26.0,114.83,114.8,326.14]
[1743947754064,26.0,114.83,114.78,0.14216157]
[1743947754357,26.0,114.83,114.78,30.14216157]
[1743947754737,26.0,114.81,114.78,30.0]
[1743947756560,81.3,114.8,114.78,30.0]
[1743947756730,26.0,114.77,114.76,0.063]
[1743947759752,81.3,114.79,114.76,0.063]
[1743947760560,81.3,114.84,114.77,19.07613357]
[1743947760743,26.0,114.81,114.77,19.07613357]
[1743947760956,81.3,114.84,114.77,19.07613357]
[1743947761952,81.3,114.84,114.79,19.07613357]
[1743947762355,12.1701,114.88,114.79,19.07613357]
[1743947762648,12.1701,114.88,114.81,19.07613357]
[1743947763167,26.0,114.87,114.81,19.07613357]
[1743947763671,81.3,114.9,114.81,19.07613357]
[1743947764659,81.3,114.9,114.83,19.07613357]
[1743947764863,26.0,114.87,114.83,19.07613357]
[1743947765070,26.0,114.87,114.79,18.933972]
[1743947765266,26.0,114.87,114.8,0.14216157]
[1743947765471,26.0,114.87,114.79,25.031972]
[1743947765654,26.0,114.87,114.8,0.14216157]
[1743947765968,26.0,114.87,114.79,24.88981043]
[1743947766179,26.0,114.87,114.8,0.28432314]
[1743947766370,32.094,114.87,114.8,30.28432314]
[1743947766678,26.0,114.83,114.8,30.0]
[1743947768350,26.0,114.83,114.77,6.0988]
[1743947768551,26.0,114.83,114.78,6.52478471]
[1743947769474,81.3,114.86,114.79,18.64964886]
[1743947770263,81.3,114.9,114.8,0.42648471]
[1743947770464,26.0,114.87,114.82,19.07613357]
[1743947770878,6.0928,114.89,114.82,19.07613357]
[1743947771273,87.3924,114.9,114.82,19.07613357]
[1743947771474,81.3,114.9,114.82,19.07613357]
[1743947771770,87.3924,114.9,114.82,19.07613357]
[1743947771973,26.0,114.87,114.82,30.0]
[1743947773669,32.0939,114.87,114.82,30.0]
[1743947773869,6.0939,114.87,114.82,30.0]
[1743947774485,26.0,114.85,114.82,30.0]
[1743947774689,26.0,114.85,114.8,18.933972]
[1743947774876,26.0,114.85,114.8,25.031072]
[1743947776582,26.0,114.86,114.8,25.031072]
[1743947777085,26.0,114.85,114.8,25.031072]
[1743947777378,26.0,114.85,114.81,0.14216157]
[1743947777763,26.0,114.86,114.81,0.14216157]
[1743947778280,0.03,114.88,114.81,0.14216157]
[1743947778786,0.03,114.88,114.83,0.42648471]
[1743947779164,0.03,114.88,114.84,6.0954]
[1743947781879,0.03,114.88,114.85,19.07613357]
[1743947782470,0.03,114.88,114.84,19.07613357]
[1743947782980,26.0,114.86,114.82,3.9079]
[1743947783292,26.0,114.86,114.83,30.0]
[1743947783466,26.0,114.86,114.83,36.0958]
[1743947783890,26.0,114.86,114.83,6.0958]
[1743947784395,26.0,114.86,114.82,3.9079]
[1743947785499,26.0,114.86,114.83,25.17173357]
[1743947785892,26.0,114.86,114.83,19.07613357]
[1743947786086,26.0,114.86,114.83,18.933972]
[1743947786292,26.0,114.86,114.82,3.9079]
[1743947786794,26.0,114.85,114.79,3.9079]
[1743947787006,107.3,114.84,114.8,30.0]
[1743947787584,113.3957,114.84,114.78,13.52084032]
[1743947787992,113.3957,114.84,114.77,12.7844]
[1743947788190,113.3957,114.84,114.78,30.0]
[1743947789102,113.3957,114.84,114.77,18.8834]
[1743947789292,107.3,114.84,114.78,19.07613357]
[1743947789600,107.3,114.84,114.78,25.17463357]
[1743947789804,107.3,114.84,114.77,18.8833]
[1743947790179,107.3,114.84,114.79,0.28432314]
[1743947790593,113.3954,114.84,114.78,48.79181043]
[1743947790900,107.3,114.84,114.78,48.79181043]
[1743947791204,113.3955,114.84,114.78,48.79181043]
[1743947791587,107.3,114.84,114.78,48.79181043]
[1743947792190,107.3,114.84,114.79,0.28432314]
[1743947792910,81.3,114.84,114.79,0.28432314]
[1743947793584,81.3,114.84,114.79,36.38222314]
[1743947794205,80.138174,114.84,114.79,36.38222314]
[1743947795603,80.138174,114.84,114.79,30.28432314]
[1743947795808,80.138174,114.83,114.79,30.0]
[1743947796712,80.138174,114.83,114.79,0.42648471]
[1743947797588,80.138174,114.83,114.79,6.52448471]
[1743947798486,80.138174,114.83,114.79,0.42648471]
[1743947798690,80.138174,114.83,114.77,6.0989]
[1743947798909,80.138174,114.83,114.76,24.81204886]
[1743947799122,80.138174,114.83,114.77,30.0]
[1743947799291,80.138174,114.83,114.77,36.099]
[1743947800431,80.138174,114.83,114.78,0.063]
[1743947800999,26.0,114.8,114.78,0.063]
[1743947801318,32.098,114.79,114.78,0.063]
[1743947802014,36.40191484,114.79,114.78,0.063]
[1743947804412,32.098,114.79,114.78,0.063]
[1743947804593,36.37708702,114.79,114.78,0.063]
[1743947805614,32.098,114.79,114.78,0.063]
[1743947806695,80.138174,114.8,114.78,0.063]
[1743947807696,86.235774,114.8,114.78,0.063]
[1743947809217,80.138174,114.8,114.78,0.063]
[1743947810107,86.235774,114.8,114.78,0.063]
[1743947810819,80.138174,114.79,114.78,0.063]
[1743947811001,6.0976,114.8,114.78,0.063]
[1743947812123,19.07613357,114.79,114.78,0.063]
[1743947812695,32.17503357,114.79,114.78,0.063]
[1743947812922,38.77303357,114.79,114.78,0.063]
[1743947813417,38.27303357,114.79,114.78,0.063]
[1743947813922,13.0989,114.79,114.78,0.063]
[1743947814123,6.0978,114.8,114.78,0.063]
[1743947818024,19.07613357,114.79,114.78,0.063]
[1743947819519,6.52448471,114.79,114.78,0.063]
[1743947819722,0.42648471,114.77,114.76,0.063]
[1743947821624,25.17523357,114.77,114.76,0.063]
[1743947821925,25.17523357,114.77,114.76,0.0001]
[1743947821926,42.28413357,114.77,114.76,0.0001]
[1743947822820,26.0,114.74,114.73,0.063]
[1743947823704,32.1007,114.74,114.73,0.063]
[1743947825416,51.17683357,114.74,114.73,0.063]
[1743947826723,26.0,114.7,114.68,0.063]
[1743947826926,66.92863357,114.74,114.68,0.063]
[1743947826927,26.0,114.69,114.68,0.063]
[1743947828330,32.1034,114.69,114.68,0.063]
[1743947830009,51.17953357,114.69,114.68,0.063]
[1743947831724,32.1034,114.69,114.68,0.063]
[1743947832033,6.1018,114.72,114.68,0.063]
[1743947832533,22.1614,114.73,114.68,0.063]
[1743947832924,26.0,114.71,114.68,0.063]
[1743947833220,16.06,114.73,114.68,0.063]
[1743947833423,16.06,114.73,114.69,4.0024]
[1743947833624,6.0999,114.76,114.69,4.0024]
[1743947833933,26.0,114.73,114.69,4.0024]
[1743947834434,6.0999,114.76,114.69,4.0024]
[1743947834635,6.0999,114.76,114.69,10.1057]
[1743947834833,26.0,114.73,114.69,10.1057]
[1743947835011,6.0999,114.76,114.69,10.1057]
[1743947835208,26.0,114.73,114.69,4.0024]
[1743947835420,81.8,114.73,114.69,4.0024]
[1743947836633,87.9014,114.73,114.69,4.0024]
[1743947836834,87.9014,114.73,114.68,0.063]
[1743947836835,26.0,114.7,114.68,0.063]
[1743947837034,26.0,114.7,114.68,30.063]
[1743947838229,26.0,114.7,114.68,0.063]
[1743947839543,81.8,114.73,114.68,0.063]
[1743947839745,87.9013,114.73,114.68,0.063]
[1743947840043,81.8,114.73,114.68,0.063]
[1743947840439,87.9013,114.73,114.68,0.063]
[1743947842153,15.2514,114.75,114.68,0.063]
[1743947842154,32.1033,114.7,114.68,0.063]
[1743947842332,81.8,114.69,114.68,0.063]
[1743947843545,100.87613357,114.69,114.68,0.063]
[1743947844445,106.97953357,114.69,114.68,0.063]
[1743947844823,51.17953357,114.69,114.68,0.063]
[1743947845025,25.67953357,114.69,114.68,0.0001]
[1743947845750,19.07613357,114.68,114.67,0.0001]
[1743947846126,16.96568471,114.66,114.64,0.063]
[1743947846342,39.95514886,114.65,114.64,0.063]
[1743947846861,39.95514886,114.65,114.6,30.0]
[1743947846862,26.0,114.62,114.6,15.143139]
[1743947847022,26.0,114.62,114.57,12.0619]
[1743947847227,26.0,114.62,114.55,3.7129]
[1743947847655,26.0,114.58,114.55,3.7129]
[1743947847851,26.0,114.58,114.55,0.03]
[1743947848359,26.0,114.57,114.55,0.03]
[1743947850847,81.8,114.61,114.55,0.03]
[1743947852156,26.0,114.57,114.55,0.03]
[1743947858365,81.3,114.6,114.55,0.03]
[1743947858580,26.0,114.61,114.57,16.2584]
[1743947858788,81.3,114.64,114.58,19.07613357]
[1743947858949,91.24747866,114.68,114.58,19.07613357]
[1743947859156,26.0,114.65,114.58,19.07613357]
[1743947859682,0.063,114.64,114.58,19.07613357]
[1743947860651,0.063,114.64,114.59,6.1087]
[1743947862283,0.063,114.64,114.6,0.28432314]
[1743947862476,0.063,114.64,114.59,6.1087]
[1743947862477,0.063,114.64,114.57,16.2584]
[1743947862778,26.0,114.61,114.57,16.2584]
[1743947862977,26.0,114.61,114.57,22.3681]
[1743947863181,81.363,114.64,114.58,19.07613357]
[1743947863756,81.363,114.64,114.6,19.07613357]
[1743947864278,81.363,114.64,114.58,6.1091]
[1743947864486,26.0,114.61,114.58,0.14216157]
[1743947864792,26.0,114.61,114.57,22.368]
[1743947864963,26.0,114.61,114.57,16.2584]
[1743947865283,26.0,114.61,114.57,22.368]
[1743947865484,26.0,114.61,114.58,0.14216157]
[1743947865687,81.363,114.64,114.59,6.1087]
[1743947865986,26.0,114.6,114.57,16.2584]
[1743947866888,26.0,114.6,114.57,22.3681]
[1743947867265,26.0,114.6,114.57,16.2584]
[1743947867876,26.0,114.6,114.57,22.368]
[1743947868282,26.0,114.6,114.57,16.2584]
[1743947868784,26.0,114.6,114.56,0.063]
[1743947868958,26.0,114.59,114.56,0.063]
[1743947869658,6.1092,114.58,114.56,0.063]
[1743947871171,20.1292,114.58,114.56,0.063]
[1743947873072,14.02,114.58,114.56,0.063]
[1743947873273,81.3,114.59,114.56,0.063]
[1743947873880,26.0,114.57,114.56,0.063]
[1743947874092,87.4087,114.59,114.56,0.063]
[1743947874586,26.0,114.57,114.56,0.063]
[1743947877796,6.1094,114.58,114.56,0.063]
[1743947881498,106.48593357,114.57,114.56,0.063]
[1743947881799,114.27223357,114.57,114.56,0.063]
[1743947882790,32.97223357,114.57,114.56,0.063]
[1743947883693,25.043772,114.57,114.56,0.063]
[1743947884210,6.1087,114.59,114.56,0.063]
[1743947884382,27.3377,114.6,114.56,0.063]
[1743947884589,0.063,114.6,114.56,0.063]
[1743947884783,26.0,114.59,114.56,0.063]
[1743947885202,0.063,114.6,114.56,0.063]
[1743947885600,0.063,114.6,114.56,6.1733]
[1743947886110,26.063,114.6,114.56,6.1733]
[1743947886505,0.063,114.6,114.56,6.1733]
[1743947886704,26.063,114.6,114.56,6.1733]
[1743947886889,26.0,114.59,114.56,0.20516157]
[1743947887284,0.063,114.6,114.56,19.13913357]
[1743947887705,0.063,114.6,114.58,0.14216157]
[1743947888686,0.063,114.6,114.56,0.20516157]
[1743947888886,0.063,114.6,114.56,0.063]
[1743947889492,0.063,114.6,114.56,6.1731]
[1743947889688,0.063,114.6,114.57,0.14216157]
[1743947889889,0.063,114.6,114.57,19.07613357]
[1743947890704,0.063,114.6,114.56,0.063]
[1743947890905,0.063,114.6,114.56,0.20516157]
[1743947891706,0.063,114.6,114.56,6.31506157]
[1743947891896,0.063,114.6,114.56,24.96471043]
[1743947892231,0.063,114.6,114.56,40.24051043]
[1743947892698,0.063,114.6,114.56,24.96471043]
[1743947893010,0.063,114.6,114.58,0.14216157]
[1743947893886,0.063,114.6,114.59,6.1087]
[1743947894082,0.063,114.6,114.58,6.25126157]
[1743947894287,0.063,114.6,114.56,0.063]
[1743947894483,0.063,114.6,114.56,0.20516157]
[1743947894892,0.063,114.6,114.56,6.31516157]
[1743947895094,26.0,114.59,114.56,0.063]
[1743947898492,26.0,114.57,114.56,0.063]
[1743947899119,26.0,114.58,114.56,0.063]
[1743947900115,32.1094,114.58,114.56,0.063]
[1743947900915,81.8,114.57,114.56,0.063]
[1743947903219,0.063,114.6,114.56,19.13913357]
[1743947903509,26.063,114.6,114.56,19.13913357]
[1743947904098,26.0,114.59,114.56,0.20516157]
[1743947904293,26.0,114.58,114.56,0.063]
[1743947904917,26.0,114.59,114.56,0.063]
[1743947905606,26.063,114.6,114.56,6.1733]
[1743947906212,26.063,114.6,114.56,0.063]
[1743947906594,26.0,114.58,114.56,0.063]
[1743947907691,26.0,114.59,114.56,0.063]
[1743947908818,26.0,114.58,114.56,0.063]
[1743947916222,0.063,114.6,114.56,0.063]
[1743947921333,0.063,114.6,114.57,0.14216157]
[1743947921510,0.063,114.6,114.57,19.07613357]
[1743947921711,0.063,114.6,114.59,19.07613357]
[1743947921914,0.063,114.64,114.59,19.07613357]
[1743947922141,0.063,114.64,114.59,30.97613357]
[1743947922811,0.063,114.64,114.59,60.97613357]
[1743947923137,0.063,114.64,114.63,19.07613357]
[1743947923310,0.063,114.64,114.63,25.18273357]
[1743947923702,0.063,114.64,114.63,27.04793357]
[1743947924433,0.063,114.64,114.63,34.17443357]
[1743947924812,0.063,114.64,114.63,27.04793357]
[1743947925414,0.0001,114.64,114.63,27.04793357]
[1743947925615,81.8,114.71,114.64,0.14216157]
[1743947926018,87.9023,114.71,114.64,0.14216157]
[1743947926932,81.8,114.71,114.64,0.14216157]
[1743947927320,81.8,114.71,114.66,0.14216157]
[1743947927628,87.9023,114.71,114.66,0.14216157]
[1743947927932,87.9023,114.71,114.65,6.1055]
[1743947928130,81.8,114.71,114.66,0.14216157]
[1743947929429,81.8,114.71,114.66,6.1049]
[1743947931029,0.063,114.72,114.67,19.07613357]